fUSD/lending_fUSD_20240318
["ID","MTS","AMOUNT","RATE_DAILY","PERIOD"]
[319430355,1710736274331,-500.0,0.00030958,4]
[319430356,1710736274340,-500.0,0.00030958,4]
[319430357,1710736274350,-500.0,0.00030958,4]
[319430358,1710736274359,-1442.43,0.00030958,4]
[319430359,1710736274368,-500.0,0.00030958,4]
[319430360,1710736274377,-4584.29,0.00030958,4]
[319430361,1710736274386,-1419.83,0.00030958,4]
[319430362,1710736274395,-1416.16,0.00030958,4]
[319430363,1710736274405,-500.0,0.00030958,4]
[319430364,1710736274415,-1501.08,0.00030958,4]
[319430365,1710736274424,-500.0,0.00030958,4]
[319430366,1710736274433,-502.42272931,0.00030958,4]
[319430367,1710736274443,-500.0,0.00030958,4]
[319430368,1710736274451,-500.0,0.00030958,4]
[319430369,1710736274460,-1326.91,0.00030958,4]
[319430370,1710736274469,-500.0,0.00030958,4]
[319430371,1710736274479,-500.0,0.00030958,4]
[319430372,1710736274489,-500.0,0.00030958,4]
[319430373,1710736274498,-500.0,0.00030958,4]
[319430374,1710736274507,-1157.88,0.00030958,4]
[319430375,1710736274515,-500.0,0.00030958,4]
[319430376,1710736274524,-500.0,0.00030958,4]
[319430377,1710736274533,-522.83,0.00030958,4]
[319430378,1710736274542,-884.27,0.00030958,4]
[319430379,1710736274551,-1901.89,0.00030958,4]
[319430380,1710736274560,-718.57,0.00030958,4]
[319430381,1710736274568,-500.0,0.00030958,4]
[319430382,1710736274577,-500.0,0.00030958,4]
[319430383,1710736274586,-500.0,0.00030958,4]
[319430384,1710736274596,-500.0,0.00030958,4]
[319430385,1710736274605,-500.0,0.00030958,4]
[319430386,1710736274614,-626.44,0.00030958,4]
[319430387,1710736274623,-1481.56,0.00030958,4]
[319430388,1710736274632,-500.0,0.00030958,4]
[319430389,1710736274641,-820.19,0.00030958,4]
[319430390,1710736274649,-616.04,0.00030958,4]
[319430391,1710736274659,-661.6,0.00030958,4]
[319430392,1710736274668,-500.0,0.00030958,4]
[319430393,1710736274677,-807.78,0.00030958,4]
[319430394,1710736274686,-576.56,0.00030958,4]
[319430395,1710736274695,-500.0,0.00030958,4]
[319430396,1710736274704,-500.0,0.00030958,4]
[319430397,1710736274713,-1258.08,0.00030958,4]
[319430398,1710736274722,-500.0,0.00030958,4]
[319430399,1710736274734,-500.0,0.00030958,4]
[319430400,1710736274745,-500.0,0.00030958,4]
[319430401,1710736274754,-922.75,0.00030958,4]
[319430402,1710736274763,-500.0,0.00030958,4]
[319430403,1710736274772,-500.0,0.00030958,4]
[319430404,1710736274781,-1859.01,0.00030958,4]
[319430405,1710736274790,-500.0,0.00030958,4]
[319430406,1710736274799,-998.14,0.00030958,4]
[319430407,1710736274808,-500.0,0.00030958,4]
[319430408,1710736274817,-712.78,0.00030958,4]
[319430409,1710736274827,-3134.02,0.00030958,4]
[319430410,1710736274837,-720.74,0.00030958,4]
[319430411,1710736274846,-500.0,0.00030958,4]
[319430412,1710736274856,-835.55,0.00030958,4]
[319430413,1710736274865,-500.0,0.00030958,4]
[319430414,1710736274875,-794.41,0.00030958,4]
[319430415,1710736274885,-3743.94,0.00030958,4]
[319430416,1710736274894,-500.0,0.00030958,4]
[319430417,1710736274904,-642.05,0.00030958,4]
[319430418,1710736274914,-500.0,0.00030958,4]
[319430419,1710736274923,-1113.65,0.00030958,4]
[319430420,1710736274933,-589.6,0.00030958,4]
[319430421,1710736274942,-500.0,0.00030958,4]
[319430422,1710736274951,-500.0,0.00030958,4]
[319430423,1710736274961,-633.04,0.00030958,4]
[319430424,1710736274970,-512.73,0.00030958,4]
[319430425,1710736274981,-774.64,0.00030958,4]
[319430426,1710736274990,-1524.04,0.00030958,4]
[319430427,1710736274999,-500.0,0.00030958,4]
[319430428,1710736275009,-1898.65,0.00030958,4]
[319430429,1710736275019,-1586.83,0.00030958,4]
[319430430,1710736275028,-531.30669093,0.00030958,4]
[319430431,1710736275038,-500.0,0.00030958,4]
[319430432,1710736275047,-500.0,0.00030958,4]
[319430433,1710736275056,-833.34,0.00030958,4]
[319430434,1710736275066,-1329.2,0.00030958,4]
[319430435,1710736275076,-500.0,0.00030958,4]
[319430436,1710736275085,-501.93,0.00030958,4]
[319430437,1710736275095,-500.0,0.00030958,4]
[319430438,1710736275104,-574.74,0.00030958,4]
[319430439,1710736275114,-500.0,0.00030958,4]
[319430440,1710736275124,-500.0,0.00030958,4]
[319430441,1710736275134,-500.0,0.00030958,4]
[319430442,1710736275143,-899.79,0.00030958,4]
[319430443,1710736275153,-500.0,0.00030958,4]
[319430444,1710736275162,-836.63,0.00030958,4]
[319430445,1710736275172,-663.74,0.00030958,4]
[319430446,1710736275181,-1143.03,0.00030958,4]
[319430447,1710736275190,-500.0,0.00030958,4]
[319430448,1710736275200,-500.0,0.00030958,4]
[319430449,1710736275210,-500.0,0.00030958,4]
[319430450,1710736275219,-1917.2,0.00030958,4]
[319430451,1710736275230,-1716.33,0.00030958,4]
[319430452,1710736275238,-1304.54,0.00030958,4]
[319430453,1710736275247,-500.0,0.00030958,4]
[319430454,1710736275257,-705.47,0.00030958,4]
[319430455,1710736275267,-500.0,0.00030958,4]
[319430456,1710736275276,-794.56,0.00030958,4]
[319430457,1710736275285,-500.0,0.00030958,4]
[319430458,1710736275295,-500.0,0.00030958,4]
[319430459,1710736275304,-500.0,0.00030958,4]
[319430460,1710736275313,-500.0,0.00030958,4]
[319430461,1710736275322,-168.46676456,0.00030958,4]
[319430462,1710736275331,-333.25174707,0.00030958,4]
[319430463,1710736275340,-2333.6,0.00030958,4]
[319430464,1710736275349,-758.7,0.00030958,4]
[319430465,1710736275358,-588.98,0.00030958,4]
[319430466,1710736275367,-560.65,0.00030958,4]
[319430467,1710736275376,-1061.17,0.00030958,4]
[319430468,1710736275507,-500.0,0.00030958,4]
[319430469,1710736275516,-500.0,0.00030958,4]
[319430470,1710736275525,-1095.12,0.00030958,4]
[319430471,1710736275534,-500.0,0.00030958,4]
[319430472,1710736275543,-500.0,0.00030958,4]
[319430473,1710736275552,-2145.95,0.00030958,4]
[319430474,1710736275561,-500.0,0.00030958,4]
[319430475,1710736275570,-1627.27,0.00030958,4]
[319430476,1710736275579,-500.0,0.00030958,4]
[319430477,1710736275588,-500.0,0.00030958,4]
[319430478,1710736275597,-500.0,0.00030958,4]
[319430479,1710736275607,-500.0,0.00030958,4]
[319430480,1710736275616,-2012.26,0.00030958,4]
[319430481,1710736275625,-1352.76,0.00030958,4]
[319430482,1710736275635,-500.0,0.00030958,2]
[319430483,1710736275644,-537.95,0.00030958,4]
[319430484,1710736275653,-500.0,0.00030958,4]
[319430485,1710736275662,-500.0,0.00030958,4]
[319430486,1710736275671,-503.56520948,0.00030958,4]
[319430487,1710736275680,-2747.25,0.00030958,4]
[319430488,1710736275689,-606.33,0.00030958,4]
[319430489,1710736275698,-500.0,0.00030958,4]
[319430490,1710736275708,-500.0,0.00030958,4]
[319430491,1710736275717,-500.0,0.00030958,4]
[319430492,1710736275727,-500.0,0.00030958,4]
[319430493,1710736275736,-500.0,0.00030958,4]
[319430494,1710736275751,-500.0,0.00030958,4]
[319430495,1710736275760,-500.0,0.00030958,4]
[319430496,1710736275770,-323.54471335,0.00030958,4]
[319430497,1710736275781,-500.0,0.00030958,4]
[319430498,1710736275790,-554.01,0.00030958,4]
[319430499,1710736275800,-807.58,0.00030958,4]
[319430500,1710736275809,-2956.82,0.00030958,4]
[319430501,1710736275818,-500.0,0.00030958,4]
[319430502,1710736275828,-500.0,0.00030958,4]
[319430503,1710736275837,-500.0,0.00030958,4]
[319430504,1710736275846,-1607.18,0.00030958,4]
[319430505,1710736275856,-500.0,0.00030958,4]
[319430506,1710736275865,-500.0,0.00030958,4]
[319430507,1710736275875,-1221.54,0.00030958,4]
[319430508,1710736275884,-500.0,0.00030958,4]
[319430509,1710736275894,-1838.23,0.00030958,4]
[319430510,1710736275903,-1026.01,0.00030958,4]
[319430511,1710736275913,-500.0,0.00030958,4]
[319430512,1710736275923,-500.0,0.00030958,4]
[319430513,1710736275933,-842.1,0.00030958,4]
[319430514,1710736275942,-512.31,0.00030958,4]
[319430515,1710736275952,-500.0,0.00030958,4]
[319430516,1710736275961,-831.26,0.00030958,4]
[319430517,1710736275971,-1157.32,0.00030958,4]
[319430518,1710736275980,-1448.23,0.00030958,4]
[319430519,1710736275990,-500.0,0.00030958,4]
[319430520,1710736275999,-556.38,0.00030958,4]
[319430521,1710736276008,-500.0,0.00030958,4]
[319430522,1710736276018,-1287.24,0.00030958,4]
[319430523,1710736276027,-500.0,0.00030958,4]
[319430524,1710736276037,-1436.69,0.00030958,4]
[319430525,1710736276046,-1335.54,0.00030958,4]
[319430526,1710736276056,-500.0,0.00030958,4]
[319430527,1710736276065,-1968.76,0.00030958,4]
[319430528,1710736276075,-799.94,0.00030958,4]
[319430529,1710736276085,-1597.09,0.00030958,4]
[319430530,1710736276095,-500.0,0.00030958,4]
[319430531,1710736276104,-500.0,0.00030958,4]
[319430532,1710736276114,-500.0,0.00030958,4]
[319430533,1710736276123,-632.08,0.00030958,4]
[319430534,1710736276133,-681.46,0.00030958,4]
[319430535,1710736276143,-500.0,0.00030958,4]
[319430536,1710736276152,-1138.91,0.00030958,4]
[319430537,1710736276162,-1427.1,0.00030958,4]
[319430538,1710736276171,-809.76,0.00030958,4]
[319430539,1710736276181,-500.0,0.00030958,4]
[319430540,1710736276191,-1229.86,0.00030958,4]
[319430541,1710736276201,-691.68,0.00030958,4]
[319430542,1710736276210,-500.0,0.00030958,4]
[319430543,1710736276220,-500.0,0.00030958,4]
[319430544,1710736276230,-2635.68,0.00030958,4]
[319430545,1710736276240,-500.0,0.00030958,4]
[319430546,1710736276250,-500.0,0.00030958,4]
[319430547,1710736276259,-500.0,0.00030958,4]
[319430548,1710736276269,-500.0,0.00030958,4]
[319430549,1710736276278,-788.73,0.00030958,4]
[319430550,1710736276287,-500.0,0.00030958,4]
[319430551,1710736276297,-500.0,0.00030958,4]
[319430552,1710736276306,-500.0,0.00030958,4]
[319430553,1710736276316,-500.0,0.00030958,4]
[319430554,1710736276325,-500.0,0.00030958,4]
[319430555,1710736276334,-500.0,0.00030958,4]
[319430556,1710736276343,-500.0,0.00030958,4]
[319430557,1710736276352,-500.0,0.00030958,4]
[319430558,1710736276361,-2115.38,0.00030958,4]
[319430559,1710736276371,-500.0,0.00030958,4]
[319430560,1710736276380,-1520.72,0.00030958,4]
[319430561,1710736276389,-1607.09,0.00030958,4]
[319430562,1710736276398,-500.0,0.00030958,4]
[319430563,1710736276407,-500.0,0.00030958,4]
[319430564,1710736276417,-1832.55,0.00030958,4]
[319430565,1710736276428,-500.0,0.00030958,4]
[319430566,1710736276448,-824.57,0.00030958,4]
[319430567,1710736276468,-500.0,0.00030958,4]
[319430568,1710736276491,-1581.71,0.00030958,4]
[319430569,1710736276513,-500.0,0.00030958,4]
[319430570,1710736276536,-583.42,0.00030958,4]
[319430571,1710736276560,-1212.73,0.00030958,4]
[319430572,1710736276583,-500.0,0.00030958,4]
[319430573,1710736276592,-500.0,0.00030958,4]
[319430574,1710736276602,-1404.3,0.00030958,4]
[319430575,1710736276610,-24025.87,0.00030958,4]
[319430576,1710736276620,-500.0,0.00030958,4]
[319430577,1710736276630,-500.0,0.00030958,4]
[319430578,1710736276639,-151.28918343,0.00030958,7]
[319430579,1710736276649,-2851.25,0.00030958,4]
[319430580,1710736276659,-2546.72,0.00030958,4]
[319430581,1710736276668,-500.0,0.00030958,4]
[319430582,1710736276678,-2287.3,0.00030958,4]
[319430583,1710736276686,-500.0,0.00030958,4]
[319430584,1710736276696,-500.0,0.00030958,4]
[319430585,1710736276705,-647.58,0.00030958,4]
[319430586,1710736276714,-585.33,0.00030958,4]
[319430587,1710736276724,-1053.54,0.00030958,4]
[319430588,1710736276737,-500.0,0.00030958,4]
[319430589,1710736276745,-1503.64,0.00030958,4]
[319430590,1710736276755,-500.0,0.00030958,4]
[319430591,1710736276764,-1183.08,0.00030958,4]
[319430592,1710736276774,-500.0,0.00030958,4]
[319430593,1710736276783,-500.0,0.00030958,4]
[319430594,1710736276792,-554.14,0.00030958,4]
[319430595,1710736276801,-2122.6,0.00030958,4]
[319430596,1710736276810,-500.0,0.00030958,4]
[319430597,1710736276820,-500.0,0.00030958,4]
[319430598,1710736276830,-505.31895789,0.00030958,4]
[319430599,1710736276839,-500.0,0.00030958,4]
[319430600,1710736276849,-513.85,0.00030958,4]
[319430601,1710736276858,-602.43852047,0.00030958,4]
[319430602,1710736276867,-500.93046641,0.00030958,4]
[319430603,1710736276877,-1355.29,0.00030958,4]
[319430604,1710736276887,-1088.26,0.00030958,4]
[319430605,1710736276896,-1081.54,0.00030958,4]
[319430606,1710736276905,-602.31,0.00030958,4]
[319430607,1710736276915,-500.0,0.00030958,4]
[319430608,1710736276924,-500.0,0.00030958,4]
[319430609,1710736276933,-16800.01,0.00030958,4]
[319430610,1710736276942,-500.0,0.00030958,4]
[319430611,1710736276951,-232.42888588,0.00030958,4]
[319430612,1710736276961,-732.67,0.00030958,4]
[319430613,1710736276970,-500.0,0.00030958,4]
[319430614,1710736276982,-500.0,0.00030958,4]
[319430615,1710736276991,-508.79679707,0.00030958,4]
[319430616,1710736277001,-500.0,0.00030958,4]
[319430617,1710736277010,-500.0,0.00030958,4]
[319430618,1710736277020,-500.0,0.00030958,4]
[319430619,1710736277029,-500.0,0.00030958,4]
[319430620,1710736277039,-500.0,0.00030958,4]
[319430621,1710736277048,-500.0,0.00030958,4]
[319430622,1710736277058,-500.0,0.00030958,4]
[319430623,1710736277067,-602.8671305,0.00030958,4]
[319430624,1710736277077,-529.90197628,0.00030958,4]
[319430625,1710736277087,-500.0,0.00030958,4]
[319430626,1710736277096,-500.0,0.00030958,4]
[319430627,1710736277106,-500.0,0.00030958,4]
[319430628,1710736277115,-742.96,0.00030958,4]
[319430629,1710736277124,-875.28,0.00030958,4]
[319430630,1710736277134,-500.0,0.00030958,4]
[319430631,1710736277145,-501.70268132,0.00030958,4]
[319430632,1710736277154,-500.0,0.00030958,4]
[319430633,1710736277163,-500.0,0.00030958,4]
[319430634,1710736277173,-500.0,0.00030958,4]
[319430635,1710736277183,-1382.05,0.00030958,4]
[319430636,1710736277193,-500.0,0.00030958,4]
[319430637,1710736277202,-500.0,0.00030958,4]
[319430638,1710736277212,-9617.26,0.00030958,4]
[319430639,1710736277221,-287.1530271,0.00030958,4]
[319430640,1710736277233,-632.75,0.00030958,4]
[319430641,1710736277242,-500.0,0.00030958,4]
[319430642,1710736277252,-500.0,0.00030958,4]
[319430643,1710736277261,-523.3,0.00030958,4]
[319430644,1710736277271,-500.0,0.00030958,4]
[319430645,1710736277280,-500.0,0.00030958,4]
[319430646,1710736277290,-9955.07,0.00030958,4]
[319430647,1710736277299,-500.0,0.00030958,4]
[319430648,1710736277309,-1242.28,0.00030958,4]
[319430649,1710736277318,-500.0,0.00030958,4]
[319430650,1710736277327,-500.0,0.00030958,4]
[319430651,1710736277336,-815.39,0.00030958,4]
[319430652,1710736277345,-500.0,0.00030958,4]
[319430653,1710736277354,-606.68,0.00030958,4]
[319430654,1710736277363,-500.0,0.00030958,4]
[319430655,1710736277372,-2827.35,0.00030958,4]
[319430656,1710736277382,-500.0,0.00030958,4]
[319430657,1710736277391,-500.0,0.00030958,4]
[319430658,1710736277399,-584.4,0.00030958,4]
[319430659,1710736277409,-500.0,0.00030958,4]
[319430660,1710736277418,-500.0,0.00030958,4]
[319430661,1710736277427,-500.0,0.00030958,4]
[319430662,1710736277435,-500.0,0.00030958,4]
[319430663,1710736277444,-2844.9,0.00030958,4]
[319430664,1710736277453,-566.06724784,0.00030958,4]
[319430665,1710736277462,-449.91797486,0.00030958,4]
[319430666,1710736277472,-500.0,0.00030958,4]
[319430667,1710736277483,-918.65,0.00030958,4]
[319430668,1710736277492,-2329.09,0.00030958,4]
[319430669,1710736277501,-500.0,0.00030958,4]
[319430670,1710736277510,-500.0,0.00030958,4]
[319430671,1710736277519,-500.0,0.00030958,4]
[319430672,1710736277528,-587.46265559,0.00030958,4]
[319430673,1710736277653,-2657.41,0.00030958,4]
[319430674,1710736277662,-500.0,0.00030958,4]
[319430675,1710736277671,-5715.22,0.00030958,4]
[319430676,1710736277681,-500.0,0.00030958,4]
[319430677,1710736277690,-500.0,0.00030958,4]
[319430678,1710736277699,-1178.39,0.00030958,4]
[319430679,1710736277708,-500.0,0.00030958,4]
[319430680,1710736277716,-500.0,0.00030958,4]
[319430681,1710736277726,-500.0,0.00030958,4]
[319430682,1710736277736,-500.0,0.00030958,4]
[319430683,1710736277748,-1030.3,0.00030958,4]
[319430684,1710736277757,-7010.64,0.00030958,4]
[319430685,1710736277766,-500.0,0.00030958,4]
[319430686,1710736277777,-500.0,0.00030958,4]
[319430687,1710736277786,-795.31,0.00030958,4]
[319430688,1710736277796,-367.00905411,0.00030958,4]
[319430689,1710736277805,-502.23240453,0.00030958,4]
[319430690,1710736277814,-500.0,0.00030958,4]
[319430691,1710736277824,-500.0,0.00030958,4]
[319430692,1710736277833,-500.0,0.00030958,4]
[319430693,1710736277843,-500.0,0.00030958,4]
[319430694,1710736277852,-647.9,0.00030958,4]
[319430695,1710736277861,-500.0,0.00030958,4]
[319430696,1710736277871,-756.1,0.00030958,4]
[319430697,1710736277879,-500.0,0.00030958,4]
[319430698,1710736277889,-500.0,0.00030958,4]
[319430699,1710736277898,-500.0,0.00030958,4]
[319430700,1710736277907,-500.0,0.00030958,4]
[319430701,1710736277917,-1213.71,0.00030958,4]
[319430702,1710736277926,-3112.49,0.00030958,4]
[319430703,1710736277935,-502.02229598,0.00030958,4]
[319430704,1710736277945,-500.0,0.00030958,4]
[319430705,1710736277954,-511.57561934,0.00030958,4]
[319430706,1710736277963,-500.0,0.00030958,4]
[319430707,1710736277972,-500.0,0.00030958,4]
[319430708,1710736277983,-16099.23,0.00030958,4]
[319430709,1710736277992,-500.0,0.00030958,4]
[319430710,1710736278002,-500.0,0.00030958,4]
[319430711,1710736278011,-500.0,0.00030958,4]
[319430712,1710736278021,-258.3933481,0.00030958,4]
[319430713,1710736278030,-1067.48,0.00030958,4]
[319430714,1710736278040,-1085.99,0.00030958,4]
[319430715,1710736278049,-500.0,0.00030958,4]
[319430716,1710736278058,-500.0,0.00030958,4]
[319430717,1710736278067,-500.0,0.00030958,4]
[319430718,1710736278077,-500.0,0.00030958,4]
[319430719,1710736278086,-7279.53,0.00030958,4]
[319430720,1710736278095,-500.0,0.00030958,4]
[319430721,1710736278105,-492.43755109,0.00030958,4]
[319430722,1710736278115,-508.7770641,0.00030958,4]
[319430723,1710736278125,-3639.26,0.00030958,4]
[319430724,1710736278134,-4937.08,0.00030958,4]
[319430725,1710736278144,-500.0,0.00030958,4]
[319430726,1710736278153,-14656.9,0.00030958,4]
[319430727,1710736278162,-500.0,0.00030958,4]
[319430728,1710736278172,-500.0,0.00030958,4]
[319430729,1710736278181,-500.0,0.00030958,4]
[319430730,1710736278190,-1119.07,0.00030958,4]
[319430731,1710736278199,-500.0,0.00030958,4]
[319430732,1710736278208,-714.97,0.00030958,4]
[319430733,1710736278217,-500.0,0.00030958,4]
[319430734,1710736278226,-500.0,0.00030958,4]
[319430735,1710736278236,-500.0,0.00030958,4]
[319430736,1710736278245,-3778.15,0.00030958,4]
[319430737,1710736278254,-500.0,0.00030958,4]
[319430738,1710736278262,-915.55,0.00030958,4]
[319430739,1710736278272,-2442.22,0.00030958,4]
[319430740,1710736278282,-500.0,0.00030958,4]
[319430741,1710736278291,-500.0,0.00030958,4]
[319430742,1710736278300,-500.0,0.00030958,4]
[319430743,1710736278309,-2039.35,0.00030958,4]
[319430744,1710736278319,-266.5803224,0.00030958,4]
[319430745,1710736278328,-500.0,0.00030958,4]
[319430746,1710736278338,-1590.31,0.00030958,4]
[319430747,1710736278347,-500.0,0.00030958,2]
[319430748,1710736278356,-500.0,0.00030958,4]
[319430749,1710736278366,-2078.76,0.00030958,4]
[319430750,1710736278375,-765.76,0.00030958,4]
[319430751,1710736278384,-2024.35,0.00030958,4]
[319430752,1710736278394,-500.0,0.00030958,4]
[319430753,1710736278403,-500.0,0.00030958,4]
[319430754,1710736278412,-500.0,0.00030958,4]
[319430755,1710736278422,-3546.12,0.00030958,4]
[319430756,1710736278433,-500.0,0.00030958,4]
[319430757,1710736278442,-500.0,0.00030958,4]
[319430758,1710736278451,-500.0,0.00030958,4]
[319430759,1710736278460,-500.0,0.00030958,4]
[319430760,1710736278469,-5252.441717,0.00030993,2]
[319430761,1710736278478,-202.109937,0.00030993,2]
[319430762,1710736278487,-1480.822512,0.00030993,2]
[319430763,1710736278496,-11610.195174,0.00030993,2]
[319430764,1710736278505,-151.31149,0.00030993,2]
[319430765,1710736278514,-472.5476253,0.00031,4]
[319430766,1710736278523,-26301.10081253,0.00031,3]
[319430767,1710736278532,-500.0,0.00031,30]
[319430768,1710736278541,-500.0,0.00031,30]
[319430769,1710736278550,-500.0,0.00031,30]
[319430770,1710736278559,-500.35513818,0.00031,30]
[319430771,1710736278568,-228384.50587254,0.00031,5]
[319430772,1710736278578,-156903.25575883,0.00031,30]
[319430773,1710736278587,-2161.80918068,0.00031,2]
[319430774,1710736278595,-2000.42346454,0.00031,2]
[319430775,1710736278604,-350.0,0.00031,31]
[319430776,1710736278613,-307.64621647,0.00031,120]
[319430777,1710736278622,-600.0,0.00031,32]
[319430778,1710736278631,-5000.0,0.00031,7]
[319430779,1710736278641,-20266.09441459,0.00031,2]
[319430780,1710736278650,-500.0,0.00031,2]
[319430781,1710736278659,-612.79,0.00031,2]
[319430782,1710736278669,-20000.0,0.00031,20]
[319430783,1710736278677,-500.0,0.00031,7]
[319430784,1710736278687,-500.0,0.00031,7]
[319430785,1710736278696,-500.0,0.00031,7]
[319430786,1710736278706,-500.0,0.00031,7]
[319430787,1710736278715,-500.0,0.00031,7]
[319430788,1710736278725,-500.0,0.00031,7]
[319430789,1710736278736,-500.0,0.00031,7]
[319430790,1710736278748,-500.0,0.00031,7]
[319430791,1710736278757,-500.0,0.00031,7]
[319430792,1710736278767,-500.0,0.00031,7]
[319430793,1710736278777,-500.0,0.00031,7]
[319430794,1710736278786,-500.0,0.00031,7]
[319430795,1710736278795,-500.0,0.00031,7]
[319430796,1710736278805,-500.0,0.00031,7]
[319430797,1710736278814,-500.0,0.00031,7]
[319430798,1710736278824,-500.0,0.00031,7]
[319430799,1710736278834,-500.0,0.00031,7]
[319430800,1710736278843,-500.0,0.00031,7]
[319430801,1710736278852,-500.0,0.00031,7]
[319430802,1710736278862,-500.0,0.00031,7]
[319430803,1710736278871,-500.0,0.00031,7]
[319430804,1710736278880,-500.0,0.00031,7]
[319430805,1710736278889,-500.0,0.00031,7]
[319430806,1710736278898,-500.0,0.00031,7]
[319430807,1710736278907,-500.0,0.00031,7]
[319430808,1710736278917,-500.0,0.00031,2]
[319430809,1710736278926,-500.0,0.00031,2]
[319430810,1710736278935,-500.0,0.00031,2]
[319430811,1710736278945,-500.0,0.00031,2]
[319430812,1710736278954,-500.0,0.00031,2]
[319430813,1710736278964,-500.0,0.00031,2]
[319430814,1710736278974,-500.0,0.00031,2]
[319430815,1710736278985,-500.0,0.00031,2]
[319430816,1710736278995,-500.0,0.00031,2]
[319430817,1710736279005,-500.0,0.00031,2]
[319430818,1710736279015,-500.0,0.00031,2]
[319430819,1710736279024,-500.0,0.00031,2]
[319430820,1710736279033,-500.0,0.00031,2]
[319430821,1710736279042,-500.0,0.00031,2]
[319430822,1710736279052,-500.0,0.00031,2]
[319430823,1710736279061,-500.0,0.00031,2]
[319430824,1710736279070,-500.0,0.00031,2]
[319430825,1710736279079,-500.0,0.00031,2]
[319430826,1710736279089,-500.0,0.00031,2]
[319430827,1710736279098,-500.0,0.00031,2]
[319430828,1710736279107,-500.0,0.00031,2]
[319430829,1710736279116,-500.0,0.00031,2]
[319430830,1710736279125,-239.28,0.00031,2]
[319430831,1710736279134,-1150.0,0.00031,3]
[319430832,1710736279143,-156.226406,0.00031,7]
[319430833,1710736279152,-422.257105,0.00031,7]
[319430834,1710736279161,-422.257105,0.00031,7]
[319430835,1710736279170,-488.338229,0.00031,7]
[319430836,1710736279179,-151.0,0.00031,7]
[319430837,1710736279189,-488.338229,0.00031,7]
[319430838,1710736279198,-151.0,0.00031,7]
[319430839,1710736279207,-151.0,0.00031,5]
[319430840,1710736279215,-151.0,0.00031,7]
[319430841,1710736279225,-151.677232,0.00031,7]
[319430842,1710736279235,-500.0,0.00031,7]
[319430843,1710736279244,-500.0,0.00031,7]
[319430844,1710736279253,-500.0,0.00031,7]
[319430845,1710736279262,-500.0,0.00031,7]
[319430846,1710736279271,-500.0,0.00031,7]
[319430847,1710736279280,-500.0,0.00031,7]
[319430848,1710736279289,-500.0,0.00031,7]
[319430849,1710736279299,-500.0,0.00031,7]
[319430850,1710736279308,-500.0,0.00031,7]
[319430851,1710736279317,-500.0,0.00031,7]
[319430852,1710736279326,-500.0,0.00031,7]
[319430853,1710736279335,-500.0,0.00031,7]
[319430854,1710736279344,-500.0,0.00031,7]